[Event "Titled Tuesday Blitz February 01 B 2022"]
[White "Paravyan, David"]
[Black "Romanchuk, Viktor"]
[WhiteFideId "4194985"]
[BlackFideId "14109271"]
[WhiteElo "2569"]
[BlackElo "2242"]
[Result "1/2-1/2"]
[Round "05"]
[TimeControl "180+1"]
[Date "2022.02.01"]
[WhiteClock "0:01:49"]
[BlackClock "0:01:12"]

1. e4 {[%clk 0:03:00]}  e6 {[%clk 0:02:58]} 2. d4 {[%clk 0:03:00]}  d5 {[%clk 0:02:58]} 3. Nc3 {[%clk 0:03:01]}  dxe4 {[%clk 0:02:58]} 4. Nxe4 {[%clk 0:03:01]}  Nd7 {[%clk 0:02:58]} 5. Nf3 {[%clk 0:02:58]}  Ngf6 {[%clk 0:02:59]} 6. Bg5 {[%clk 0:02:58]}  h6 {[%clk 0:02:58]} 7. Bxf6 {[%clk 0:02:57]}  Nxf6 {[%clk 0:02:59]} 8. Nxf6+ {[%clk 0:02:54]}  gxf6 {[%clk 0:02:59]} 9. g3 {[%clk 0:02:51]}  Qd6 {[%clk 0:02:57]} 10. c3 {[%clk 0:02:43]}  Bd7 {[%clk 0:02:57]} 11. Bg2 {[%clk 0:02:43]}  Bc6 {[%clk 0:02:53]} 12. O-O {[%clk 0:02:43]}  h5 {[%clk 0:02:47]} 13. Nh4 {[%clk 0:02:41]}  f5 {[%clk 0:02:40]} 14. Bxc6+ {[%clk 0:02:40]}  Qxc6 {[%clk 0:02:40]} 15. Qf3 {[%clk 0:02:41]}  Qxf3 {[%clk 0:02:37]} 16. Nxf3 {[%clk 0:02:42]}  f4 {[%clk 0:02:27]} 17. Rfe1 {[%clk 0:02:32]}  c6 {[%clk 0:02:24]} 18. a4 {[%clk 0:02:23]}  Be7 {[%clk 0:02:11]} 19. a5 {[%clk 0:02:19]}  fxg3 {[%clk 0:02:05]} 20. hxg3 {[%clk 0:02:19]}  h4 {[%clk 0:02:04]} 21. gxh4 {[%clk 0:02:19]}  Bxh4 {[%clk 0:02:03]} 22. a6 {[%clk 0:02:19]}  b6 {[%clk 0:02:00]} 23. Ne5 {[%clk 0:02:19]}  Rc8 {[%clk 0:01:57]} 24. Re4 {[%clk 0:02:19]}  Bf6 {[%clk 0:01:57]} 25. Rae1 {[%clk 0:02:15]}  Bxe5 {[%clk 0:01:55]} 26. Rxe5 {[%clk 0:02:16]}  Kd7 {[%clk 0:01:53]} 27. R1e3 {[%clk 0:02:07]}  Rcg8+ {[%clk 0:01:50]} 28. Rg3 {[%clk 0:02:07]}  b5 {[%clk 0:01:43]} 29. b3 {[%clk 0:01:55]}  Kc7 {[%clk 0:01:43]} 30. c4 {[%clk 0:01:55]}  bxc4 {[%clk 0:01:40]} 31. bxc4 {[%clk 0:01:56]}  Kb6 {[%clk 0:01:41]} 32. d5 {[%clk 0:01:56]}  cxd5 {[%clk 0:01:37]} 33. cxd5 {[%clk 0:01:57]}  exd5 {[%clk 0:01:37]} 34. Rxd5 {[%clk 0:01:57]}  Kxa6 {[%clk 0:01:35]} 35. Rf5 {[%clk 0:01:55]}  Rxg3+ {[%clk 0:01:33]} 36. fxg3 {[%clk 0:01:56]}  Rh7 {[%clk 0:01:33]} 37. Kf2 {[%clk 0:01:55]}  Kb6 {[%clk 0:01:33]} 38. Ke3 {[%clk 0:01:55]}  a5 {[%clk 0:01:32]} 39. Kd3 {[%clk 0:01:55]}  Rg7 {[%clk 0:01:30]} 40. g4 {[%clk 0:01:52]}  a4 {[%clk 0:01:28]} 41. Kc3 {[%clk 0:01:52]}  Kc6 {[%clk 0:01:21]} 42. g5 {[%clk 0:01:52]}  Kd6 {[%clk 0:01:19]} 43. Kb4 {[%clk 0:01:48]}  Ke6 {[%clk 0:01:17]} 44. Ra5 {[%clk 0:01:49]}  f6 {[%clk 0:01:12]} 45. Ra6+ {[%clk 0:01:48]}  Kf5 {[%clk 0:01:12]} 46. gxf6 {[%clk 0:01:48]}  Rf7 {[%clk 0:01:12]} 47. Kxa4 {[%clk 0:01:48]}  Rxf6 {[%clk 0:01:12]} 48. Rxf6+ {[%clk 0:01:49]}  Kxf6 {[%clk 0:01:12]} 1/2-1/2


[Site "https://www.chess.com"]

[Event "Titled Tuesday Blitz February 01 B 2022"]
[White "Punin, Andrii"]
[Black "Muradli, Mahammad"]
[WhiteFideId "14112639"]
[BlackFideId "13409301"]
[WhiteElo "2357"]
[BlackElo "2645"]
[Result "0-1"]
[Round "05"]
[TimeControl "180+1"]
[Date "2022.02.01"]
[WhiteClock "0:00:41"]
[BlackClock "0:01:47"]

1. e4 {[%clk 0:03:00]}  d6 {[%clk 0:02:42]} 2. d4 {[%clk 0:03:00]}  Nf6 {[%clk 0:02:40]} 3. Nc3 {[%clk 0:02:59]}  g6 {[%clk 0:02:38]} 4. Bg5 {[%clk 0:02:59]}  Bg7 {[%clk 0:02:38]} 5. Qd2 {[%clk 0:02:59]}  O-O {[%clk 0:02:39]} 6. O-O-O {[%clk 0:02:55]}  Nc6 {[%clk 0:02:39]} 7. Nf3 {[%clk 0:02:48]}  Bg4 {[%clk 0:02:38]} 8. Bh6 {[%clk 0:02:31]}  Bxf3 {[%clk 0:02:35]} 9. gxf3 {[%clk 0:02:32]}  e5 {[%clk 0:02:33]} 10. Ne2 {[%clk 0:02:10]}  Nh5 {[%clk 0:02:20]} 11. Bxg7 {[%clk 0:02:08]}  Kxg7 {[%clk 0:02:20]} 12. f4 {[%clk 0:02:08]}  Qh4 {[%clk 0:02:13]} 13. fxe5 {[%clk 0:02:05]}  dxe5 {[%clk 0:02:14]} 14. d5 {[%clk 0:01:56]}  Ne7 {[%clk 0:02:14]} 15. Nc3 {[%clk 0:01:46]}  Rfd8 {[%clk 0:02:06]} 16. Bc4 {[%clk 0:01:39]}  Qf4 {[%clk 0:02:04]} 17. Bb3 {[%clk 0:01:38]}  Qxd2+ {[%clk 0:02:03]} 18. Rxd2 {[%clk 0:01:37]}  Nf4 {[%clk 0:02:04]} 19. Ne2 {[%clk 0:01:29]}  Kf6 {[%clk 0:01:55]} 20. Nxf4 {[%clk 0:01:29]}  exf4 {[%clk 0:01:56]} 21. f3 {[%clk 0:01:27]}  Nc8 {[%clk 0:01:54]} 22. Re2 {[%clk 0:01:22]}  Ke5 {[%clk 0:01:54]} 23. c3 {[%clk 0:01:21]}  Nd6 {[%clk 0:01:54]} 24. h4 {[%clk 0:01:19]}  Rg8 {[%clk 0:01:53]} 25. Bd1 {[%clk 0:01:16]}  h6 {[%clk 0:01:53]} 26. b3 {[%clk 0:01:15]}  b6 {[%clk 0:01:53]} 27. Kd2 {[%clk 0:01:14]}  a5 {[%clk 0:01:52]} 28. Kd3 {[%clk 0:01:13]}  Rg7 {[%clk 0:01:52]} 29. Rg2 {[%clk 0:01:11]}  Rag8 {[%clk 0:01:52]} 30. Rhg1 {[%clk 0:01:10]}  f6 {[%clk 0:01:52]} 31. Be2 {[%clk 0:01:06]}  g5 {[%clk 0:01:52]} 32. h5 {[%clk 0:00:54]}  f5 {[%clk 0:01:50]} 33. Re1 {[%clk 0:00:49]}  fxe4+ {[%clk 0:01:49]} 34. fxe4 {[%clk 0:00:49]}  g4 {[%clk 0:01:49]} 35. Bd1 {[%clk 0:00:44]}  f3 {[%clk 0:01:48]} 36. Rg3 {[%clk 0:00:43]}  Kf4 {[%clk 0:01:46]} 37. Reg1 {[%clk 0:00:41]}  Nf7 {[%clk 0:01:47]} 0-1


[Site "https://www.chess.com"]

[Event "Titled Tuesday Blitz February 01 B 2022"]
[White "Rustemov, Alexander"]
[Black "Koutlas, Nikolaos"]
[WhiteFideId "4119002"]
[BlackFideId "25827138"]
[WhiteElo "2789"]
[BlackElo "1610"]
[Result "1/2-1/2"]
[Round "05"]
[TimeControl "180+1"]
[Date "2022.02.01"]
[WhiteClock "0:00:22"]
[BlackClock "0:00:12"]

1. d4 {[%clk 0:03:00]}  Nf6 {[%clk 0:02:56]} 2. c4 {[%clk 0:03:00]}  e6 {[%clk 0:02:56]} 3. Nf3 {[%clk 0:02:59]}  d5 {[%clk 0:02:55]} 4. Nc3 {[%clk 0:02:58]}  dxc4 {[%clk 0:02:52]} 5. e4 {[%clk 0:02:57]}  b5 {[%clk 0:02:52]} 6. e5 {[%clk 0:02:56]}  Nd5 {[%clk 0:02:52]} 7. Nxb5 {[%clk 0:02:57]}  Nb6 {[%clk 0:02:53]} 8. Be3 {[%clk 0:02:56]}  Nc6 {[%clk 0:02:50]} 9. a3 {[%clk 0:02:55]}  Be7 {[%clk 0:02:50]} 10. Be2 {[%clk 0:02:55]}  O-O {[%clk 0:02:49]} 11. Qc2 {[%clk 0:02:55]}  Rb8 {[%clk 0:02:48]} 12. Rd1 {[%clk 0:02:42]}  Ba6 {[%clk 0:02:33]} 13. Nc3 {[%clk 0:02:41]}  Nd5 {[%clk 0:02:28]} 14. Bc1 {[%clk 0:02:33]}  Na5 {[%clk 0:02:10]} 15. Ne4 {[%clk 0:02:26]}  f5 {[%clk 0:01:45]} 16. exf6 {[%clk 0:02:24]}  Nxf6 {[%clk 0:01:45]} 17. Nc5 {[%clk 0:02:13]}  Bxc5 {[%clk 0:01:29]} 18. dxc5 {[%clk 0:02:13]}  Qe7 {[%clk 0:01:27]} 19. Be3 {[%clk 0:02:01]}  Nd5 {[%clk 0:01:26]} 20. Bd4 {[%clk 0:01:36]}  Nb3 {[%clk 0:01:20]} 21. O-O {[%clk 0:01:34]}  Nxd4 {[%clk 0:01:16]} 22. Nxd4 {[%clk 0:01:34]}  Nf4 {[%clk 0:00:59]} 23. Bxc4 {[%clk 0:01:07]}  Qxc5 {[%clk 0:00:58]} 24. b3 {[%clk 0:00:51]}  Bxc4 {[%clk 0:00:51]} 25. Qxc4 {[%clk 0:00:51]}  Qxc4 {[%clk 0:00:46]} 26. bxc4 {[%clk 0:00:52]}  Rb2 {[%clk 0:00:33]} 27. Rfe1 {[%clk 0:00:51]}  c5 {[%clk 0:00:21]} 28. Nb5 {[%clk 0:00:34]}  Ne2+ {[%clk 0:00:20]} 29. Kf1 {[%clk 0:00:24]}  Ng3+ {[%clk 0:00:09]} 30. hxg3 {[%clk 0:00:19]}  Rfxf2+ {[%clk 0:00:08]} 31. Kg1 {[%clk 0:00:20]}  Rxg2+ {[%clk 0:00:09]} 32. Kh1 {[%clk 0:00:20]}  Rh2+ {[%clk 0:00:10]} 33. Kg1 {[%clk 0:00:21]}  Rbg2+ {[%clk 0:00:10]} 34. Kf1 {[%clk 0:00:21]}  Rf2+ {[%clk 0:00:10]} 35. Kg1 {[%clk 0:00:21]}  Rfg2+ {[%clk 0:00:11]} 36. Kf1 {[%clk 0:00:21]}  Rf2+ {[%clk 0:00:11]} 37. Kg1 {[%clk 0:00:22]}  Rfg2+ {[%clk 0:00:12]} 1/2-1/2


[Site "https://www.chess.com"]

[Event "Titled Tuesday Blitz February 01 B 2022"]
[White "Senthil Maran K"]
[Black "Svane, Rasmus"]
[WhiteFideId "25035681"]
[BlackFideId "4657101"]
[WhiteElo "2194"]
[BlackElo "2645"]
[Result "1/2-1/2"]
[Round "05"]
[TimeControl "180+1"]
[Date "2022.02.01"]
[WhiteClock "0:00:04"]
[BlackClock "0:00:13"]

1. d4 {[%clk 0:03:00]}  d5 {[%clk 0:02:59]} 2. Nf3 {[%clk 0:03:01]}  e6 {[%clk 0:02:59]} 3. g3 {[%clk 0:03:01]}  Nf6 {[%clk 0:02:58]} 4. Bg2 {[%clk 0:03:01]}  b5 {[%clk 0:02:59]} 5. O-O {[%clk 0:03:00]}  Nbd7 {[%clk 0:02:59]} 6. a4 {[%clk 0:03:01]}  b4 {[%clk 0:02:59]} 7. c4 {[%clk 0:03:01]}  bxc3 {[%clk 0:02:59]} 8. Nxc3 {[%clk 0:03:01]}  Be7 {[%clk 0:02:59]} 9. Bf4 {[%clk 0:03:01]}  c6 {[%clk 0:02:50]} 10. a5 {[%clk 0:03:01]}  Ba6 {[%clk 0:02:48]} 11. Qa4 {[%clk 0:02:59]}  Qc8 {[%clk 0:02:47]} 12. b4 {[%clk 0:02:55]}  Qb7 {[%clk 0:02:47]} 13. Rfb1 {[%clk 0:02:51]}  Bb5 {[%clk 0:02:33]} 14. Nxb5 {[%clk 0:02:44]}  cxb5 {[%clk 0:02:34]} 15. a6 {[%clk 0:02:42]}  Qb6 {[%clk 0:02:31]} 16. Qa5 {[%clk 0:02:16]}  O-O {[%clk 0:02:26]} 17. Qxb6 {[%clk 0:02:05]}  axb6 {[%clk 0:02:06]} 18. e3 {[%clk 0:01:58]}  Ne4 {[%clk 0:02:00]} 19. Bf1 {[%clk 0:01:53]}  Nb8 {[%clk 0:01:37]} 20. Bxb8 {[%clk 0:00:58]}  Rfxb8 {[%clk 0:01:38]} 21. Bxb5 {[%clk 0:00:58]}  Nc3 {[%clk 0:01:37]} 22. Bc6 {[%clk 0:00:59]}  Nxb1 {[%clk 0:01:36]} 23. Bxa8 {[%clk 0:00:59]}  Rxa8 {[%clk 0:01:37]} 24. Rxb1 {[%clk 0:00:59]}  Rxa6 {[%clk 0:01:37]} 25. b5 {[%clk 0:00:58]}  Ra8 {[%clk 0:01:31]} 26. Ne5 {[%clk 0:00:52]}  f6 {[%clk 0:01:13]} 27. Nd7 {[%clk 0:00:30]}  Bd8 {[%clk 0:01:13]} 28. Rc1 {[%clk 0:00:29]}  Ra7 {[%clk 0:01:06]} 29. Nb8 {[%clk 0:00:28]}  Kf7 {[%clk 0:00:40]} 30. Nc6 {[%clk 0:00:14]}  Ra8 {[%clk 0:00:37]} 31. Nxd8+ {[%clk 0:00:12]}  Rxd8 {[%clk 0:00:38]} 32. Rc7+ {[%clk 0:00:12]}  Kg6 {[%clk 0:00:37]} 33. Rc6 {[%clk 0:00:13]}  Kf5 {[%clk 0:00:36]} 34. Rxb6 {[%clk 0:00:13]}  Ra8 {[%clk 0:00:35]} 35. Kg2 {[%clk 0:00:13]}  g5 {[%clk 0:00:33]} 36. h3 {[%clk 0:00:13]}  h5 {[%clk 0:00:33]} 37. g4+ {[%clk 0:00:13]}  hxg4 {[%clk 0:00:32]} 38. hxg4+ {[%clk 0:00:14]}  Kxg4 {[%clk 0:00:32]} 39. Rxe6 {[%clk 0:00:14]}  f5 {[%clk 0:00:30]} 40. Rd6 {[%clk 0:00:13]}  Ra2 {[%clk 0:00:26]} 41. Rxd5 {[%clk 0:00:11]}  f4 {[%clk 0:00:27]} 42. exf4 {[%clk 0:00:08]}  gxf4 {[%clk 0:00:27]} 43. b6 {[%clk 0:00:06]}  f3+ {[%clk 0:00:26]} 44. Kg1 {[%clk 0:00:05]}  Ra1+ {[%clk 0:00:26]} 45. Kh2 {[%clk 0:00:05]}  Rb1 {[%clk 0:00:25]} 46. Rd6 {[%clk 0:00:04]}  Rb2 {[%clk 0:00:25]} 47. Rg6+ {[%clk 0:00:03]}  Kf4 {[%clk 0:00:26]} 48. Kh3 {[%clk 0:00:01]}  Rxf2 {[%clk 0:00:25]} 49. Rf6+ {[%clk 0:00:02]}  Ke4 {[%clk 0:00:24]} 50. b7 {[%clk 0:00:03]}  Rb2 {[%clk 0:00:24]} 51. Rf7 {[%clk 0:00:03]}  Kxd4 {[%clk 0:00:14]} 52. Rxf3 {[%clk 0:00:03]}  Rxb7 {[%clk 0:00:14]} 53. Kg3 {[%clk 0:00:03]}  Ke4 {[%clk 0:00:13]} 54. Rf4+ {[%clk 0:00:03]}  Ke5 {[%clk 0:00:13]} 55. Rf3 {[%clk 0:00:04]} 1/2-1/2


[Site "https://www.chess.com"]

[Event "Titled Tuesday Blitz February 01 B 2022"]
[White "Sviridov, Valery"]
[Black "Jones, Gawain C B"]
[WhiteFideId "4120680"]
[BlackFideId "409561"]
[WhiteElo "2454"]
[BlackElo "2657"]
[Result "0-1"]
[Round "05"]
[TimeControl "180+1"]
[Date "2022.02.01"]
[WhiteClock "0:00:03"]
[BlackClock "0:00:06"]

1. d4 {[%clk 0:03:00]}  Nf6 {[%clk 0:02:59]} 2. Nf3 {[%clk 0:03:00]}  g6 {[%clk 0:03:00]} 3. g3 {[%clk 0:03:00]}  Bg7 {[%clk 0:03:00]} 4. Bg2 {[%clk 0:03:01]}  c5 {[%clk 0:03:00]} 5. c4 {[%clk 0:03:00]}  cxd4 {[%clk 0:03:00]} 6. Nxd4 {[%clk 0:03:01]}  h5 {[%clk 0:02:57]} 7. Nc3 {[%clk 0:02:57]}  h4 {[%clk 0:02:57]} 8. Bg5 {[%clk 0:02:58]}  h3 {[%clk 0:02:51]} 9. Bf3 {[%clk 0:02:55]}  Nc6 {[%clk 0:02:43]} 10. Nxc6 {[%clk 0:02:48]}  bxc6 {[%clk 0:02:43]} 11. O-O {[%clk 0:02:48]}  Rb8 {[%clk 0:02:40]} 12. Qd2 {[%clk 0:02:48]}  O-O {[%clk 0:02:29]} 13. Rfd1 {[%clk 0:02:47]}  Qb6 {[%clk 0:02:22]} 14. b3 {[%clk 0:02:45]}  d6 {[%clk 0:02:22]} 15. Rac1 {[%clk 0:02:11]}  Bf5 {[%clk 0:02:20]} 16. c5 {[%clk 0:02:03]}  dxc5 {[%clk 0:02:03]} 17. Na4 {[%clk 0:02:04]}  Qb4 {[%clk 0:02:03]} 18. Nxc5 {[%clk 0:02:01]}  Qxd2 {[%clk 0:01:57]} 19. Rxd2 {[%clk 0:02:02]}  Rfc8 {[%clk 0:01:44]} 20. Rdd1 {[%clk 0:01:58]}  Bf8 {[%clk 0:01:37]} 21. Bf4 {[%clk 0:01:57]}  Rb5 {[%clk 0:01:29]} 22. Na4 {[%clk 0:01:54]}  Be4 {[%clk 0:01:27]} 23. Nc3 {[%clk 0:01:51]}  Bxf3 {[%clk 0:01:23]} 24. Nxb5 {[%clk 0:01:42]}  Bxe2 {[%clk 0:01:23]} 25. Nxa7 {[%clk 0:01:43]}  Ra8 {[%clk 0:01:12]} 26. Re1 {[%clk 0:01:42]}  Bf3 {[%clk 0:01:06]} 27. Nxc6 {[%clk 0:01:42]}  Rxa2 {[%clk 0:00:53]} 28. Nxe7+ {[%clk 0:01:42]}  Kh7 {[%clk 0:00:54]} 29. Nc6 {[%clk 0:01:30]}  Ng4 {[%clk 0:00:40]} 30. Nd4 {[%clk 0:01:29]}  Rxf2 {[%clk 0:00:38]} 31. Rc2 {[%clk 0:01:27]}  Rxc2 {[%clk 0:00:23]} 32. Nxc2 {[%clk 0:01:28]}  Bc5+ {[%clk 0:00:19]} 33. Be3 {[%clk 0:01:28]}  Nxe3 {[%clk 0:00:17]} 34. Nxe3 {[%clk 0:01:29]}  Bd5 {[%clk 0:00:16]} 35. b4 {[%clk 0:01:25]}  Bxb4 {[%clk 0:00:16]} 36. Rd1 {[%clk 0:00:48]}  Be6 {[%clk 0:00:16]} 37. Kf2 {[%clk 0:00:46]}  Kg7 {[%clk 0:00:16]} 38. Kf3 {[%clk 0:00:46]}  Be7 {[%clk 0:00:16]} 39. Ra1 {[%clk 0:00:45]}  Bc5 {[%clk 0:00:16]} 40. Ra5 {[%clk 0:00:45]}  Bb6 {[%clk 0:00:16]} 41. Rb5 {[%clk 0:00:45]}  Bd4 {[%clk 0:00:16]} 42. Rb1 {[%clk 0:00:43]}  Kf6 {[%clk 0:00:15]} 43. Rd1 {[%clk 0:00:44]}  Ba7 {[%clk 0:00:14]} 44. Ng4+ {[%clk 0:00:42]}  Kg5 {[%clk 0:00:14]} 45. Nf2 {[%clk 0:00:42]}  Bxf2 {[%clk 0:00:10]} 46. Kxf2 {[%clk 0:00:43]}  Bg4 {[%clk 0:00:10]} 47. Rd4 {[%clk 0:00:42]}  f5 {[%clk 0:00:05]} 48. Rb4 {[%clk 0:00:43]}  Kf6 {[%clk 0:00:05]} 49. Ke3 {[%clk 0:00:44]}  Kg5 {[%clk 0:00:06]} 50. Rb6 {[%clk 0:00:44]}  Bd1 {[%clk 0:00:06]} 51. Rb8 {[%clk 0:00:43]}  Bg4 {[%clk 0:00:07]} 52. Rh8 {[%clk 0:00:43]}  Bh5 {[%clk 0:00:07]} 53. Rb8 {[%clk 0:00:39]}  Kg4 {[%clk 0:00:07]} 54. Rb4+ {[%clk 0:00:39]}  Kg5 {[%clk 0:00:08]} 55. Kd4 {[%clk 0:00:39]}  f4 {[%clk 0:00:08]} 56. gxf4+ {[%clk 0:00:36]}  Kxf4 {[%clk 0:00:09]} 57. Rb3 {[%clk 0:00:36]}  Bf3 {[%clk 0:00:09]} 58. Rb8 {[%clk 0:00:32]}  Be4 {[%clk 0:00:09]} 59. Rf8+ {[%clk 0:00:31]}  Bf5 {[%clk 0:00:09]} 60. Rb8 {[%clk 0:00:29]}  Kf3 {[%clk 0:00:09]} 61. Rb3+ {[%clk 0:00:29]}  Kg2 {[%clk 0:00:10]} 62. Rb2+ {[%clk 0:00:29]}  Kf3 {[%clk 0:00:08]} 63. Rb3+ {[%clk 0:00:29]}  Kg2 {[%clk 0:00:08]} 64. Rb2+ {[%clk 0:00:29]}  Kf3 {[%clk 0:00:08]} 65. Ke5 {[%clk 0:00:28]}  Ke3 {[%clk 0:00:05]} 66. Kf6 {[%clk 0:00:26]}  Kf4 {[%clk 0:00:05]} 67. Rf2+ {[%clk 0:00:25]}  Ke3 {[%clk 0:00:05]} 68. Rb2 {[%clk 0:00:25]}  Kf4 {[%clk 0:00:06]} 69. Rb3 {[%clk 0:00:25]}  g5 {[%clk 0:00:04]} 70. Rb4+ {[%clk 0:00:25]}  Be4 {[%clk 0:00:05]} 71. Rb3 {[%clk 0:00:22]}  g4 {[%clk 0:00:05]} 72. Ra3 {[%clk 0:00:22]}  Bf3 {[%clk 0:00:05]} 73. Ra4+ {[%clk 0:00:21]}  Ke3 {[%clk 0:00:04]} 74. Kg5 {[%clk 0:00:19]}  Kf2 {[%clk 0:00:05]} 75. Ra2+ {[%clk 0:00:19]}  Ke3 {[%clk 0:00:02]} 76. Kh4 {[%clk 0:00:19]}  Kf4 {[%clk 0:00:03]} 77. Ra4+ {[%clk 0:00:19]}  Kf5 {[%clk 0:00:03]} 78. Kg3 {[%clk 0:00:19]}  Ke5 {[%clk 0:00:04]} 79. Ra5+ {[%clk 0:00:19]}  Ke4 {[%clk 0:00:04]} 80. Ra8 {[%clk 0:00:19]}  Ke5 {[%clk 0:00:05]} 81. Rf8 {[%clk 0:00:20]}  Ke6 {[%clk 0:00:05]} 82. Re8+ {[%clk 0:00:20]}  Kf7 {[%clk 0:00:05]} 83. Re1 {[%clk 0:00:21]}  Kf6 {[%clk 0:00:06]} 84. Kf4 {[%clk 0:00:22]}  Kg6 {[%clk 0:00:07]} 85. Re6+ {[%clk 0:00:22]}  Kf7 {[%clk 0:00:07]} 86. Ra6 {[%clk 0:00:21]}  Ke7 {[%clk 0:00:07]} 87. Ra3 {[%clk 0:00:16]}  Kf6 {[%clk 0:00:08]} 88. Rc3 {[%clk 0:00:15]}  Kf7 {[%clk 0:00:08]} 89. Re3 {[%clk 0:00:16]}  Kf6 {[%clk 0:00:08]} 90. Rc3 {[%clk 0:00:16]}  Ke6 {[%clk 0:00:09]} 91. Rb3 {[%clk 0:00:16]}  Kd5 {[%clk 0:00:08]} 92. Rb8 {[%clk 0:00:14]}  Ke6 {[%clk 0:00:08]} 93. Rf8 {[%clk 0:00:14]}  Ke7 {[%clk 0:00:08]} 94. Rg8 {[%clk 0:00:15]}  Kf7 {[%clk 0:00:08]} 95. Rh8 {[%clk 0:00:15]}  Kg7 {[%clk 0:00:08]} 96. Rc8 {[%clk 0:00:16]}  Kf6 {[%clk 0:00:09]} 97. Rc5 {[%clk 0:00:16]}  Ke6 {[%clk 0:00:09]} 98. Re5+ {[%clk 0:00:15]}  Kf6 {[%clk 0:00:09]} 99. Re1 {[%clk 0:00:16]}  Kf7 {[%clk 0:00:09]} 100. Kg5 {[%clk 0:00:14]}  Kf8 {[%clk 0:00:06]} 101. Kg6 {[%clk 0:00:12]}  Bc6 {[%clk 0:00:03]} 102. Rc1 {[%clk 0:00:11]}  Be4+ {[%clk 0:00:02]} 103. Kf6 {[%clk 0:00:10]}  Kg8 {[%clk 0:00:03]} 104. Rc8+ {[%clk 0:00:05]}  Kh7 {[%clk 0:00:03]} 105. Rc7+ {[%clk 0:00:06]}  Kh6 {[%clk 0:00:03]} 106. Rc8 {[%clk 0:00:06]}  Kh7 {[%clk 0:00:03]} 107. Rc4 {[%clk 0:00:06]}  Bf3 {[%clk 0:00:03]} 108. Rc3 {[%clk 0:00:05]}  Be4 {[%clk 0:00:02]} 109. Re3 {[%clk 0:00:05]}  Bf3 {[%clk 0:00:02]} 110. Re7+ {[%clk 0:00:06]}  Kg8 {[%clk 0:00:03]} 111. Kg6 {[%clk 0:00:05]}  Kf8 {[%clk 0:00:03]} 112. Re5 {[%clk 0:00:05]}  Bg2 {[%clk 0:00:03]} 113. Kf6 {[%clk 0:00:04]}  Bf3 {[%clk 0:00:04]} 114. Rh5 {[%clk 0:00:04]}  Ke8 {[%clk 0:00:03]} 115. Re5+ {[%clk 0:00:04]}  Kd7 {[%clk 0:00:04]} 116. Kg5 {[%clk 0:00:03]}  g3 {[%clk 0:00:04]} 117. Kf4 {[%clk 0:00:01]}  gxh2 {[%clk 0:00:04]} 118. Re1 {[%clk 0:00:01]}  h1=Q {[%clk 0:00:04]} 119. Rxh1 {[%clk 0:00:02]}  Bxh1 {[%clk 0:00:05]} 120. Kg3 {[%clk 0:00:03]}  Bg2 {[%clk 0:00:06]} 0-1


[Site "https://www.chess.com"]

[Event "Titled Tuesday Blitz February 01 B 2022"]
[White "Tang, Andrew"]
[Black "Lenderman, Aleksandr"]
[WhiteFideId "2059630"]
[BlackFideId "2021285"]
[WhiteElo "2584"]
[BlackElo "2651"]
[Result "1-0"]
[Round "05"]
[TimeControl "180+1"]
[Date "2022.02.01"]
[WhiteClock "0:00:07"]
[BlackClock "0:00:02"]

1. d4 {[%clk 0:03:00]}  d5 {[%clk 0:03:00]} 2. Nf3 {[%clk 0:03:00]}  Nf6 {[%clk 0:02:58]} 3. Bf4 {[%clk 0:03:00]}  c5 {[%clk 0:02:58]} 4. e3 {[%clk 0:03:01]}  Nc6 {[%clk 0:02:52]} 5. Nbd2 {[%clk 0:03:00]}  e6 {[%clk 0:02:46]} 6. c3 {[%clk 0:02:55]}  Nh5 {[%clk 0:02:43]} 7. Bg5 {[%clk 0:02:52]}  f6 {[%clk 0:02:43]} 8. Bh4 {[%clk 0:02:44]}  g6 {[%clk 0:02:43]} 9. Rc1 {[%clk 0:02:35]}  Be7 {[%clk 0:02:37]} 10. dxc5 {[%clk 0:02:28]}  Bxc5 {[%clk 0:02:36]} 11. Be2 {[%clk 0:01:17]}  O-O {[%clk 0:02:34]} 12. O-O {[%clk 0:01:15]}  Ng7 {[%clk 0:02:19]} 13. c4 {[%clk 0:01:00]}  dxc4 {[%clk 0:02:20]} 14. Bxc4 {[%clk 0:00:59]}  Be7 {[%clk 0:02:16]} 15. e4 {[%clk 0:00:52]}  Kh8 {[%clk 0:02:14]} 16. Qe2 {[%clk 0:00:47]}  e5 {[%clk 0:02:12]} 17. Rfd1 {[%clk 0:00:47]}  Qb6 {[%clk 0:02:10]} 18. Bb3 {[%clk 0:00:37]}  Ne6 {[%clk 0:02:10]} 19. Nc4 {[%clk 0:00:36]}  Qa6 {[%clk 0:02:07]} 20. Qe3 {[%clk 0:00:33]}  g5 {[%clk 0:02:00]} 21. Bg3 {[%clk 0:00:31]}  Bc5 {[%clk 0:02:00]} 22. Qe1 {[%clk 0:00:25]}  Ned4 {[%clk 0:01:42]} 23. Ncxe5 {[%clk 0:00:18]}  fxe5 {[%clk 0:01:39]} 24. Rxc5 {[%clk 0:00:16]}  Rxf3 {[%clk 0:01:39]} 25. Rxd4 {[%clk 0:00:11]}  Rxb3 {[%clk 0:01:04]} 26. Rxc6 {[%clk 0:00:09]}  Qxc6 {[%clk 0:01:04]} 27. Bxe5+ {[%clk 0:00:06]}  Kg8 {[%clk 0:01:05]} 28. Rd8+ {[%clk 0:00:07]}  Kf7 {[%clk 0:01:04]} 29. axb3 {[%clk 0:00:06]}  b6 {[%clk 0:00:57]} 30. f3 {[%clk 0:00:05]}  Be6 {[%clk 0:00:53]} 31. Rd1 {[%clk 0:00:04]}  Bxb3 {[%clk 0:00:48]} 32. Rc1 {[%clk 0:00:05]}  Bc4 {[%clk 0:00:27]} 33. Qe3 {[%clk 0:00:04]}  Qe6 {[%clk 0:00:17]} 34. Qxg5 {[%clk 0:00:05]}  Rg8 {[%clk 0:00:16]} 35. Qf4+ {[%clk 0:00:05]}  Ke8 {[%clk 0:00:16]} 36. Bf6 {[%clk 0:00:03]}  Qc6 {[%clk 0:00:10]} 37. Qe5+ {[%clk 0:00:03]}  Kf7 {[%clk 0:00:11]} 38. Bh4 {[%clk 0:00:03]}  Re8 {[%clk 0:00:09]} 39. Qf4+ {[%clk 0:00:03]}  Kg8 {[%clk 0:00:09]} 40. Rd1 {[%clk 0:00:04]}  Bf7 {[%clk 0:00:08]} 41. Bf2 {[%clk 0:00:04]}  Qc2 {[%clk 0:00:07]} 42. Qd2 {[%clk 0:00:04]}  Qxd2 {[%clk 0:00:05]} 43. Rxd2 {[%clk 0:00:04]}  Rc8 {[%clk 0:00:05]} 44. Bd4 {[%clk 0:00:05]}  Bb3 {[%clk 0:00:03]} 45. Kf2 {[%clk 0:00:06]}  Kf7 {[%clk 0:00:02]} 46. Ke3 {[%clk 0:00:05]}  Ke8 {[%clk 0:00:02]} 47. g4 {[%clk 0:00:06]}  Rc6 {[%clk 0:00:01]} 48. Bc3 {[%clk 0:00:06]}  a5 {[%clk 0:00:02]} 49. f4 {[%clk 0:00:06]}  a4 {[%clk 0:00:02]} 50. f5 {[%clk 0:00:06]}  a3 {[%clk 0:00:02]} 51. Re2 {[%clk 0:00:04]}  a2 {[%clk 0:00:02]} 52. Re1 {[%clk 0:00:04]}  Rd6 {[%clk 0:00:02]} 53. Ra1 {[%clk 0:00:05]}  Rd1 {[%clk 0:00:02]} 54. Rxd1 {[%clk 0:00:05]}  Bxd1 {[%clk 0:00:03]} 55. b4 {[%clk 0:00:06]}  Bxg4 {[%clk 0:00:03]} 56. Kf4 {[%clk 0:00:05]}  Bh3 {[%clk 0:00:03]} 57. e5 {[%clk 0:00:05]}  Kf7 {[%clk 0:00:03]} 58. e6+ {[%clk 0:00:06]}  Ke8 {[%clk 0:00:03]} 59. Ke5 {[%clk 0:00:06]}  Bg4 {[%clk 0:00:03]} 60. f6 {[%clk 0:00:07]}  Bh5 {[%clk 0:00:03]} 61. b5 {[%clk 0:00:07]}  Bg6 {[%clk 0:00:02]} 62. Kd6 {[%clk 0:00:07]} 1-0


[Site "https://www.chess.com"]